Cogmind - Beta 15 @@@ ROGUE MODE // 2025.08.17 @ 08:07:49 Player: shapeshifter Result: Destroyed by G-67 Veteran with Field Laser Performance ------------- Evolutions (5) 2500 Regions Visited (10) 2000 Robots Destroyed (71) 355 Value Destroyed (3535) 3535 Prototype IDs (50) 1000 Alien Tech Used (0) 0 Bonus (6063) 6063 TOTAL SCORE: 15453 Bonus ------- High Alert Combat Kills 286 Follower Combat Kills 2813 Registered with UFD 300 Met Optimus in HQ 500 Met Warlord at Base 500 MAIN.C Attacked Warlord 500 Warlord Defense Kills 100 Built Enhanced Grunts 300 A7 Reached Mainframe 300 Met R17 at Cetus 500 Friendly Fire -36 Cogmind --------- Core Integrity 0/1000 Matter 295/300 Energy 88/100 System Corruption 2% Temperature Cool (21) Movement Treading (240) Ox1 Location -5/Warlord Parts ------- > --- POWER (1) -------- (None) > --- PROPULSION (4) --- Medium Treads > --- UTILITY (10) ----- High-capacity Storage Unit Improved Signal Interpreter Makeshift ECM Suite > --- WEAPON (2) ------- (None) > --- INVENTORY (20) --- Light Antimatter Reactor Carbon-fiber Leg Carbon-fiber Leg Advanced Signal Interpreter Targeting Computer Advanced Actuator Array Mapping Drone Bay (2/3) Makeshift Laser Phase Gun Dispersion Rifle Advanced Variable Charge Gun Vortex Rail (40) Vortex Rail (40) Improved Remote Datajack Botcube Large Botcube Large Botcube Peak State ------------ > --- POWER ------------ Quantum Reactor > --- PROPULSION ------- Centrium Heavy Treads Centrium Heavy Treads > --- UTILITY ---------- Advanced Heat Sink High-capacity Storage Unit Improved Sensor Array Improved Signal Interpreter Expert System Centrium Medium Armor Plating Centrium Medium Armor Plating Makeshift Hacking Suite Makeshift Hacking Suite A0-MCA's Component Scanner > --- WEAPON ----------- Advanced Variable Charge Gun Advanced KE Penetrator > --- INVENTORY -------- Quantum Reactor Centrium Heavy Treads Centrium Heavy Treads Centrium Heavy Treads Improved Sensor Array Phase Shifter Centrium Medium Armor Plating Centrium Medium Armor Plating Mapping Drone Bay Advanced Variable Charge Gun LU-1G1's Laser Shovel Thunder Hammer Botcube Large Botcube Large Botcube [Rating: 132] Favorites ----------- Power Deuterium Engine Engine Deuterium Engine Power Core Light Fission Core Reactor Quantum Reactor Propulsion Centrium Heavy Treads Treads Centrium Heavy Treads Leg Carbon-fiber Leg Wheel Compact Wheel Utility Makeshift Hacking Suite Device Improved Sensor Array Storage High-capacity Storage Unit Processor Improved Signal Interpreter Hackware Makeshift Hacking Suite Protection Centrium Medium Armor Plating Weapon Assault Rifle Energy Gun Advanced Variable Charge Gun Energy Cannon Heavy Particle Cannon Ballistic Gun Assault Rifle Ballistic Cannon Assault Cannon Launcher Missile Launcher Special Weapon LU-1G1's Laser Shovel Impact Weapon Thunder Hammer Build | -11 -10 -10 -8 -6 -6 -6 -5 -5 -5 -5 ------- Run | Yrd Mat Sub Scr Fac Ext Cet Fac Upp Upp War Slots Evolved 10 | . . . . 8 . . 2 . . . Power . | . . . . . . . . . . . Propulsion 2 | . . . . 2 . . . . . . Utility 8 | . . . . 6 . . 2 . . . Weapon . | . . . . . . . . . . . Parts Attached 98 | 7 2 2 10 24 18 17 5 3 8 2 Power 13 | 1 1 . 2 2 1 2 . 1 2 1 Engine 5 | 1 1 . 2 1 . . . . . . Core 4 | . . . . 1 1 . . 1 1 . Reactor 4 | . . . . . . 2 . . 1 1 Propulsion 27 | 2 . 2 1 7 6 8 . . . 1 Treads 10 | 2 . . . 2 . 5 . . . 1 Leg 9 | . . . . . 6 3 . . . . Wheel 8 | . . 2 1 5 . . . . . . Hover . | . . . . . . . . . . . Flight . | . . . . . . . . . . . Utility 38 | 2 . . 4 12 7 4 4 2 3 . Device 17 | 1 . . . 4 6 . 1 2 3 . Storage 4 | 1 . . 2 1 . . . . . . Processor 4 | . . . . 2 . . 2 . . . Hackware 6 | . . . . 5 . 1 . . . . Protection 7 | . . . 2 . 1 3 1 . . . Artifact . | . . . . . . . . . . . Weapon 20 | 2 1 . 3 3 4 3 1 . 3 . Energy Gun 3 | . . . . . . 2 . . 1 . Energy Cannon 1 | . . . . 1 . . . . . . Ballistic Gun 8 | 2 1 . 1 . 1 1 . . 2 . Ballistic Cannon 2 | . . . . 1 1 . . . . . Launcher 3 | . . . . 1 2 . . . . . Special Weapon 1 | . . . 1 . . . . . . . Impact Weapon 2 | . . . 1 . . . 1 . . . Slashing Weapon . | . . . . . . . . . . . Piercing Weapon . | . . . . . . . . . . . Special Melee Weapon . | . . . . . . . . . . . Unidentified Prototypes 6 | . . . 1 . . 4 1 . . . Corrupted Parts 9 | . . . . . . 9 . . . . System Corruption 44 | . . . . . . 44 . . . . Parts Lost 52 | . . . . 9 14 . 9 3 8 9 Power 6 | . . . . 1 1 . 1 1 1 1 Propulsion 12 | . . . . 3 4 . 2 . 1 2 Utility 22 | . . . . 3 5 . 4 2 4 4 Weapon 12 | . . . . 2 4 . 2 . 2 2 Highest Loss Streak 9 | . . . . 7 7 . 6 3 4 9 To Critical Strikes . | . . . . . . . . . . . Average Backups 14 | 4 7 7 19 26 13 13 12 6 13 14 Power . | . . . 1 . . . . . . 1 Propulsion 1 | 3 2 2 1 1 1 2 2 1 1 2 Utility 7 | . 1 1 9 16 9 7 5 3 6 4 Weapon 3 | . 3 4 4 4 . 2 1 . 3 6 Tool/Special . | . . . . . . . . . . . Unused Backups 56 | . 6 2 15 3 14 4 2 . . 10 Power 4 | . 1 . 3 . . . . . . . Propulsion 10 | . 2 . 3 . 2 1 . . . 2 Utility 27 | . 3 1 5 . 10 3 2 . . 3 Weapon 10 | . . 1 4 1 . . . . . 4 Tool/Special 5 | . . . . 2 2 . . . . 1 Average Slot Usage (%) 84 | . 100 100 89 79 86 95 87 79 70 67 Engine 5 | . 14 14 14 5 2 . . . . . Core 1 | . . . . . 2 4 . 1 4 4 Reactor 1 | . . . . . . 1 4 2 . . Treads 7 | . 28 14 . 2 . 3 11 11 11 10 Leg 2 | . . . . . 13 19 . . . . Wheel 10 | . . 13 28 18 6 . . . . . Device 10 | . 14 14 1 9 18 20 15 8 7 16 Storage 8 | . 14 14 14 9 6 6 5 5 5 5 Processor 7 | . . . . 5 6 6 16 17 14 11 Hackware 6 | . . . . 12 13 13 11 11 8 4 Protection 3 | . . . 4 . 1 5 6 5 3 . Energy Gun 1 | . . . . . . 3 3 5 3 . Ballistic Gun 11 | . 28 28 25 5 2 1 4 . 2 8 Impact Weapon 1 | . . . 1 . 4 4 1 5 . . Peak Build Rating 132 | 7 8 8 34 56 71 112 132 115 109 98 Average Rating 63 | 5 7 7 19 47 60 83 127 110 98 94 On Entrance 53 | . 7 8 8 27 56 70 112 102 109 85 Naked Turns . | . . . . . . . . . . . Heaviest Build 262 | 14 15 15 215 262 262 81 87 78 77 78 Greatest Support 160 | 40 40 40 32 48 70 160 160 160 160 160 Greatest Overweight (x) 13 | . . . 7 13 5 1 1 . . 1 Average Overweight (x) 1 | . . . 2 6 1 . . . . . Largest Inventory Capacity 35 | 8 8 8 35 35 35 20 20 20 20 20 Average Capacity 21 | 7 8 8 24 35 21 20 20 20 20 20 Most Carried 35 | 8 8 8 35 35 33 20 20 18 20 20 Average Carried 19 | 4 7 7 22 31 18 19 19 12 18 19 Final Capacity 35 | 8 8 8 35 35 20 20 20 20 20 20 Final Carried 35 | 7 8 8 35 34 20 20 12 18 20 19 Class Distribution -------------------- 43% | Scavenger-Mutant 21% | Mutant 21% | Hauler-Mutant 5% | Commander-Mutant Dominant Class ---------------- Mutant | -10/Materials Mutant | -10/Subcaves Hauler-Mutant | -8/Scraptown Hauler-Mutant | -6/Factory Scavenger-Mutant | -6/Extension Commander-Mutant | -6/Cetus Scavenger-Mutant | -5/Factory Scavenger-Mutant | -5/Upper Caves Scavenger-Mutant | -5/Upper Caves Scavenger-Mutant | -5/Warlord Resources | -11 -10 -10 -8 -6 -6 -6 -5 -5 -5 -5 ----------- Run | Yrd Mat Sub Scr Fac Ext Cet Fac Upp Upp War Matter Collected 2698 | 244 216 62 201 306 668 272 251 164 209 105 Remotely 60 | . . . . . . . . . 60 . Salvage Created 3546 | 10 286 47 123 694 1010 340 466 326 190 54 Parts 168 | 3 19 1 6 34 49 14 22 8 10 2 Haulers Intercepted . | . . . . . . . . . . . Recyclers Shooed 3 | . . . . 1 . . 2 . . . Parts Field Recycled . | . . . . . . . . . . . Retrieved Matter . | . . . . . . . . . . . Parts Self-Destructed 37 | . . 8 . . . . . 3 26 . Prevented 4 | . . . . . . . . 2 2 . Kills | -11 -10 -10 -8 -6 -6 -6 -5 -5 -5 -5 ------- Run | Yrd Mat Sub Scr Fac Ext Cet Fac Upp Upp War Combat Hostiles Destroyed 55 | . 9 1 2 9 14 4 7 5 3 1 Melee 4 | . . . . . 3 . . 1 . . Guns 29 | . 9 1 2 4 3 . 7 . 2 1 Cannons 6 | . . . . 3 3 . . . . . AOE 6 | . . . . 2 3 1 . . . . Classes Destroyed 20 | 1 2 1 2 7 3 . 2 1 1 . Worker 1 | . . . . 1 . . . . . . Builder 2 | . . . . . 1 . 1 . . . Tunneler 2 | 1 . . . . 1 . . . . . Recycler 4 | . . . . 1 3 . . . . . Operator 1 | . . . . 1 . . . . . . Watcher 5 | . . . . 1 1 2 1 . . . Swarmer 3 | . 3 . . . . . . . . . Grunt 20 | . 6 . . 6 4 . 3 . . 1 Brawler 1 | . . . . . . . . . 1 . Duelist 1 | . . . . 1 . . . . . . Sentry 5 | . . . . 1 3 . . 1 . . Demolisher 1 | . . . . . . . 1 . . . Hunter 8 | . . . . . 4 . . 3 1 . Programmer 6 | . . . . 1 1 . 3 . 1 . Behemoth 1 | . . . . . 1 . . . . . Cetus Guard 4 | . . . . . . 4 . . . . Enhanced Grunt 1 | . . . . . . . 1 . . . Subdweller 1 | . . 1 . . . . . . . . Explorer 1 | . . . 1 . . . . . . . Scrapper 1 | . . . 1 . . . . . . . Botcube 1 | . . . . . . . 1 . . . Thug 1 | . . . . . 1 . . . . . Mutant 1 | . . . . . . . . 1 . . Best Kill Streak 8 | 1 3 1 1 7 8 3 3 2 1 1 Combat Bots Only 6 | . 3 1 1 6 3 2 3 2 1 1 Max Kills in Single Turn 3 | 1 1 1 1 3 2 1 2 1 1 1 Gunslinging . | . . . . . . . . . . . Exploded 2 | . . . . 2 1 1 . . . . Melee 1 | . . . . . 1 . . 1 . . Uniques/NPCs Destroyed . | . . . . . . . . . . . Combat | -11 -10 -10 -8 -6 -6 -6 -5 -5 -5 -5 -------- Run | Yrd Mat Sub Scr Fac Ext Cet Fac Upp Upp War Hostile Shots Fired 1096 | . 36 9 8 96 295 29 294 102 62 165 Missed 314 | . 6 2 1 37 89 15 75 28 16 45 Hits 782 | . 30 7 7 59 206 14 219 74 46 120 Melee 8 | . . . . . . . . . 4 4 Projectile 774 | . 30 7 7 59 206 14 219 74 42 116 AOE 1 | . . . . 1 . . . . . . Critical Strikes 22 | . 3 . 1 3 . . 9 2 . 4 Part Disruptions 2 | . . . . 1 . . 1 . . . Damage Taken 13729 | . 309 142 166 1534 2355 347 4257 1277 1076 2266 Core 1926 | . 44 85 35 353 385 12 250 202 148 412 Absorbed by Shields 37 | . . . . . . 37 . . . . Reduced by Siege Mode 64 | . . . . . . . 64 . . . Ignored by Resistances 490 | . . . . . 183 . . . . 307 Regen/Repaired (Parts) 609 | . . . . . . . . . . 609 Core Remaining (%) 48 | 100 . . 34 . . 11 . . . . Volleys Fired 254 | 4 28 7 10 59 59 7 44 4 25 7 Largest 2 | 2 2 2 2 2 2 1 2 1 2 2 Hottest 240 | 40 40 40 43 112 112 43 240 240 210 63 Shots Fired 361 | 8 56 14 17 71 64 8 71 5 32 15 Gun 277 | 8 56 14 17 34 26 1 71 5 30 15 Cannon 62 | . . . . 36 26 . . . . . Launcher 20 | . . . . 1 12 7 . . . . Special 2 | . . . . . . . . . 2 . Kinetic 275 | 8 56 14 17 53 47 . 41 . 24 15 Thermal 66 | . . . . 17 5 1 30 5 8 . Explosive 13 | . . . . 1 12 . . . . . Electromagnetic 7 | . . . . . . 7 . . . . Robot Hit Streak 19 | 4 16 9 12 5 19 2 18 19 7 4 Robot Miss Streak 7 | 1 5 1 2 7 2 2 4 2 3 5 Penetration Max 1 | . . . . . 1 . 1 . 1 . Secondary Targets 1 | . . . . . . . 1 . . . Max Gunslinging Chain 1 | . . . . . . . 1 . . . Shots Hit Robots 245 | 5 37 11 11 36 55 2 48 11 21 8 Core Hits 138 | 2 17 2 4 26 38 16 19 1 8 5 Critical Kills 3 | . . . . . 1 . 2 . . . Critical Parts Destroyed 13 | . . . . . 4 . 5 3 1 . Critical Strikes 18 | . . . . . 7 . 7 3 1 . Destroy 10 | . . . . . 2 . 7 . 1 . Blast 1 | . . . . . 1 . . . . . Smash 7 | . . . . . 4 . . 3 . . Melee Attacks 58 | . . . 5 4 18 . 11 18 2 . Impact 58 | . . . 5 4 18 . 11 18 2 . Slashing . | . . . . . . . . . . . Piercing . | . . . . . . . . . . . Sneak Attacks 2 | . . . . . 2 . . . . . Combat Hostiles 2 | . . . . . 2 . . . . . Follow-up Attacks . | . . . . . . . . . . . Damage Inflicted 8168 | 70 495 142 151 865 2535 887 1761 552 467 243 Guns 3687 | 70 495 142 151 208 263 . 1697 82 366 213 Cannons 1133 | . . . . 534 599 . . . . . Explosions 2232 | . . . . 123 1222 887 . . . . Melee 1047 | . . . . . 451 . 50 470 76 . Ramming 44 | . . . . . . . 14 . . 30 Kinetic 3551 | 70 495 142 151 449 762 . 952 . 317 213 Thermal 1631 | . . . . 293 100 337 745 82 74 . Explosive 1345 | . . . . 123 1222 . . . . . Electromagnetic 550 | . . . . . . 550 . . . . Impact 1047 | . . . . . 451 . 50 470 76 . Slashing . | . . . . . . . . . . . Piercing . | . . . . . . . . . . . Highest Corruption 46 | . . . . 2 2 46 10 10 16 16 Average Corruption 6 | . . . . 1 2 7 3 10 11 13 Corruption Purged . | . . . . . . . . . . . Corruption Blocked . | . . . . . . . . . . . Effects 131 | . . . . 7 19 14 15 47 25 4 Message Errors 42 | . . . . 3 7 4 5 16 7 . Matter Fused 25 | . . . . 1 2 3 4 9 4 2 Heat Flow Errors 15 | . . . . . 2 2 1 4 6 . Energy Discharges 15 | . . . . 3 1 2 2 5 2 . Parts Fused 5 | . . . . . 1 1 . 2 1 . Data Loss (minor) 13 | . . . . . 4 . 1 6 2 . Data Loss (major) 5 | . . . . . 1 1 . 2 1 . Misfires 5 | . . . . . . 1 . 1 2 1 Alerts 6 | . . . . . 1 . 2 2 . 1 Overload Shots 8 | . . . . . . . 2 4 2 . Effects 1 | . . . . . . . . . 1 . Heat Surge 1 | . . . . . . . . . 1 . Overflow Damage 381 | . . . . . 135 . . 205 41 . Projectiles . | . . . . . . . . . . . Explosions 49 | . . . . . 49 . . . . . Melee 332 | . . . . . 86 . . 205 41 . Knockbacks 15 | . . . . 5 6 . 1 1 2 . Impact 3 | . . . . . . . 1 1 1 . Kinetic 11 | . . . . 5 6 . . . . . Secondary 1 | . . . . . . . . . 1 . Self-Inflicted Damage 83 | . . . . . 83 . . . . . Shots 2 | . . . . . 2 . . . . . Rammed 10 | . . . . . . . 4 . . 6 Targets Rammed 10 | . . . . . . . 4 . . 6 Kicked . | . . . . . . . . . . . Crushed . | . . . . . . . . . . . Highest Temperature 377 | . 20 . 41 345 197 231 292 377 275 14 Average Temperature 133 | . 11 . 16 183 97 111 133 151 124 8 Received Heat Transfer 3158 | . 144 . 109 216 540 27 1191 126 135 670 Effects 3 | . . . . 1 . . 1 . 1 . Energy Bleed 1 | . . . . . . . . . 1 . Interference 1 | . . . . . . . 1 . . . Damage (minor) 1 | . . . . 1 . . . . . . Siege Activations 1 | . . . . . . . 1 . . . Total Turns 10 | . . . . . . . 10 . . . Longest Duration 10 | . . . . . . . 10 . . . Martial Activations . | . . . . . . . . . . . Shielding Activations . | . . . . . . . . . . . Robots Disrupted . | . . . . . . . . . . . Combat Hostiles . | . . . . . . . . . . . Robots Corrupted 10 | . . . . . 2 3 . 4 1 . Combat Hostiles 10 | . . . . . 2 3 . 4 1 . Parts Fried 15 | . . . . . 2 1 . 9 3 . Impact Corruptions 11 | . . . . . 3 . . 7 1 . Robots Melted . | . . . . . . . . . . . Combat Hostiles . | . . . . . . . . . . . Parts Melted 3 | . . . 2 1 . . . . . . Heat Transferred 1954 | . . . . 407 148 250 962 100 87 . Parts Sabotaged . | . . . . . . . . . . . Parts Stolen . | . . . . . . . . . . . Parts Stripped . | . . . . . . . . . . . Power Chain Reactions 3 | . . . . . . 3 . . . . Alert | -11 -10 -10 -8 -6 -6 -6 -5 -5 -5 -5 ------- Run | Yrd Mat Sub Scr Fac Ext Cet Fac Upp Upp War Maximum Alert Level 4 | . . . . 1 2 1 4 . . . Low Security (%) 45 | 100 100 . . 37 97 . 4 . . . Level 1 30 | . . . . 62 1 100 14 . . . Level 2 . | . . . . . . . 2 . . . Level 3 11 | . . . . . . . 38 . . . Level 4 12 | . . . . . . . 39 . . . Level 5 . | . . . . . . . . . . . High Security . | . . . . . . . . . . . Max Security . | . . . . . . . . . . . Peak Influence 1261 | 5 106 . . 277 430 383 1261 . . . Initial 240 | . . . . . 97 240 178 . . . Average 361 | . 29 . . 158 58 298 917 . . . Influence Increases 4720 | 5 299 . . 681 1018 373 1794 100 366 84 Destroy 0b10 Robot/C 2380 | . 180 . . 380 540 160 680 80 280 80 Destroy 0b10 Robot/NC 100 | 5 . . . 35 30 10 20 . . . Destroy Leader 358 | . 30 . . 84 72 . 122 20 30 . Allied During Kill 1260 | . . . . 119 247 161 673 . 56 4 Successful Hack 114 | . 59 . . 24 25 . 6 . . . Disable Machine 270 | . . . . 30 60 15 165 . . . Destroy Structure 163 | . . . . 9 29 27 98 . . . Lose Combat Pursuer 75 | . 30 . . . 15 . 30 . . . Influence Decreases 4720 | 5 217 82 . 482 787 484 983 931 567 182 Entered New Map 1047 | . . 40 . . 102 190 141 419 57 98 Time Decay 2730 | 5 217 42 . 392 382 254 562 482 350 44 Lost Part 425 | . . . . 70 135 . 90 30 80 20 Lost Ally 518 | . . . . 20 168 40 190 . 80 20 Squads Dispatched 26 | . 1 . . 9 3 . 12 . 1 . Investigation 5 | . 1 . . 1 . . 3 . . . Extermination 5 | . . . . 2 . . 3 . . . Reinforcement 9 | . . . . 3 3 . 3 . . . Assault 3 | . . . . . . . 2 . 1 . Garrison 4 | . . . . 3 . . 1 . . . Intercept . | . . . . . . . . . . . Searches Triggered . | . . . . . . . . . . . Construction Impeded 3 | . . . . 1 1 . 1 . . . Haulers Reinforced 2 | . . . . 1 . . 1 . . . Active Scanning Responses . | . . . . . . . . . . . Cargo Convoy Interrupts . | . . . . . . . . . . . Stealth | -11 -10 -10 -8 -6 -6 -6 -5 -5 -5 -5 --------- Run | Yrd Mat Sub Scr Fac Ext Cet Fac Upp Upp War Distress Signals 11 | . . . . 1 6 2 1 . . 1 Communications Jammed . | . . . . . . . . . . . Distress Signals . | . . . . . . . . . . . Times Spotted 202 | . 21 1 15 28 25 8 45 5 14 40 Peak Tracking Total 24 | . 4 1 2 5 4 5 9 2 7 24 Tactical Retreats 4 | . 2 . . . 1 . 1 . . . Traps | -11 -10 -10 -8 -6 -6 -6 -5 -5 -5 -5 ------- Run | Yrd Mat Sub Scr Fac Ext Cet Fac Upp Upp War Traps Triggered 2 | . . . . . 2 . . . . . Indirectly . | . . . . . . . . . . . Trap Hack Attempts . | . . . . . . . . . . . Triggered . | . . . . . . . . . . . Disarmed . | . . . . . . . . . . . Reprogrammed . | . . . . . . . . . . . Reused . | . . . . . . . . . . . Traps Extracted . | . . . . . . . . . . . Installed . | . . . . . . . . . . . Triggered . | . . . . . . . . . . . Machines | -11 -10 -10 -8 -6 -6 -6 -5 -5 -5 -5 ---------- Run | Yrd Mat Sub Scr Fac Ext Cet Fac Upp Upp War Machines Disabled 24 | . . . 4 2 5 1 11 1 . . Max in Single Turn 4 | . . . 1 1 4 1 1 1 . . Garrison Access 4 | . . . . 2 . . 2 . . . Energy Cycler 2 | . . . . . 2 . . . . . Machines Repaired . | . . . . . . . . . . . Machines Dismantled . | . . . . . . . . . . . Machines Sabotaged . | . . . . . . . . . . . Overloaded Fab Kills . | . . . . . . . . . . . Hacking | -11 -10 -10 -8 -6 -6 -6 -5 -5 -5 -5 --------- Run | Yrd Mat Sub Scr Fac Ext Cet Fac Upp Upp War Machines Accessed 35 | . 7 . 1 8 7 1 7 1 . 3 Terminals 23 | . 7 . . 4 7 1 4 . . . Fabricators 2 | . . . . 1 . . 1 . . . Repair Stations . | . . . . . . . . . . . Recycling Units 1 | . . . . 1 . . . . . . Scanalyzers . | . . . . . . . . . . . Garrison Access 4 | . . . . 2 . . 2 . . . Total Hacks 109 | . 23 . 14 24 20 1 19 1 . 7 Successful 68 | . 13 . 14 11 12 1 9 1 . 7 Failed 41 | . 10 . . 13 8 . 10 . . . Catastrophic 6 | . 4 . . 1 . . 1 . . . Database Lockouts . | . . . . . . . . . . . Manual 33 | . 17 . . 6 2 2 6 . . . Terminals 73 | . 23 . . 17 20 1 12 . . . Fabricators 4 | . . . . 1 . . 3 . . . Repair Stations . | . . . . . . . . . . . Recycling Units 1 | . . . . 1 . . . . . . Scanalyzers . | . . . . . . . . . . . Garrison Access 9 | . . . . 5 . . 4 . . . Terminal Hacks 57 | . 11 . 14 7 12 1 4 1 . 7 Record 16 | . . . 14 . . . . . . 2 Part Schematic 3 | . 2 . . . 1 . . . . . Robot Schematic 1 | . . . . . 1 . . . . . Robot Analysis 4 | . 2 . . . 1 . 1 . . . Prototype ID Bank 5 | . . . . 1 . . . . . 4 Open Door 7 | . . . . 1 3 1 . 1 . 1 Open DSF 1 | . . . . . . . 1 . . . Branch Access Points 3 | . 1 . . 1 . . 1 . . . Terminal Index 1 | . . . . 1 . . . . . . Scanalyzer Index 1 | . . . . . 1 . . . . . Alert Level 2 | . . . . 1 1 . . . . . Hauler Manifests 2 | . 1 . . . 1 . . . . . Registered Components 2 | . 1 . . 1 . . . . . . Zone Layout 9 | . 4 . . 1 3 . 1 . . . Fabricator Hacks 4 | . . . . 1 . . 3 . . . Network Status 2 | . . . . 1 . . 1 . . . Load Schematic 1 | . . . . . . . 1 . . . Build 1 | . . . . . . . 1 . . . Repair Station Hacks . | . . . . . . . . . . . Recycling Unit Hacks 1 | . . . . 1 . . . . . . Report Inventory 1 | . . . . 1 . . . . . . Scanalyzer . | . . . . . . . . . . . Garrison Access Hacks 4 | . . . . 2 . . 2 . . . Seal Access 4 | . . . . 2 . . 2 . . . Unauthorized Hacks 2 | . 2 . . . . . . . . . Terminals 2 | . 2 . . . . . . . . . Botnet 2 | . 2 . . . . . . . . . Fabricators . | . . . . . . . . . . . Repair Stations . | . . . . . . . . . . . Recycling Units . | . . . . . . . . . . . Scanalyzers . | . . . . . . . . . . . Garrison Access . | . . . . . . . . . . . Data Cores Recovered 1 | . . . . . . . 1 . . . Used 1 | . . . . . . . 1 . . . Hacking Detections 20 | . 5 . . 5 5 1 4 . . . Full Trace Events 6 | . 2 . . 1 . . 3 . . . Feedback Events 1 | . . . . . . . 1 . . . Corruption 1 | . . . . . . . 1 . . . Feedback Blocked . | . . . . . . . . . . . Robot Schematics Acquired 1 | . . . . . 1 . . . . . Robots Built . | . . . . . . . . . . . Authchips . | . . . . . . . . . . . Time . | . . . . . . . . . . . Total Robot Build Rating . | . . . . . . . . . . . Part Schematics Acquired 3 | . 2 . . . 1 . . . . . Parts Built . | . . . . . . . . . . . Authchips . | . . . . . . . . . . . Time 51 | . . . . . . . 51 . . . Total Part Build Rating . | . . . . . . . . . . . Parts Repaired . | . . . . . . . . . . . Time . | . . . . . . . . . . . Parts Recycled . | . . . . . . . . . . . Recycled Matter . | . . . . . . . . . . . Retrieved Matter . | . . . . . . . . . . . Retrieved Components . | . . . . . . . . . . . Parts Scanalyzed . | . . . . . . . . . . . Part Schematics Acquired . | . . . . . . . . . . . Parts Damaged . | . . . . . . . . . . . Bothacking | -11 -10 -10 -8 -6 -6 -6 -5 -5 -5 -5 ------------ Run | Yrd Mat Sub Scr Fac Ext Cet Fac Upp Upp War Used RIF Installer . | . . . . . . . . . . . Robots Hacked . | . . . . . . . . . . . Non-combat . | . . . . . . . . . . . Combat . | . . . . . . . . . . . Robot Hacks Applied . | . . . . . . . . . . . Relay Couplers Released 4 | . . . . 4 . . . . . . Programmers 4 | . . . . 4 . . . . . . Fabnet Peak Effective % . | . . . . . . . . . . . Robots Rewired 17 | . . . . . 12 . . 3 2 . Allies Hacked 2 | . . . . . . . 1 . 1 . Hacks Repelled . | . . . . . . . . . . . Allies | -11 -10 -10 -8 -6 -6 -6 -5 -5 -5 -5 -------- Run | Yrd Mat Sub Scr Fac Ext Cet Fac Upp Upp War Total Allies 34 | . . . 3 . 21 5 . 3 2 . Largest Group 14 | . . . 3 3 12 14 14 3 3 1 Highest-Rated Group 877 | . . . 201 201 467 877 877 90 105 29 Highest-Rated Ally 159 | . . . 84 84 159 159 146 30 49 29 Total Orders 3 | . . . . . . . 3 . . . EXPLORE 3 | . . . . . . . 3 . . . Ally Attacks 471 | . . . 21 80 86 32 163 . 73 16 Total Damage 11285 | . . . 579 1294 1409 1079 4874 . 1827 223 Kills 81 | . . . 6 13 13 4 31 . 11 3 Allies Corrupted 4 | . . . . . . . 1 . 3 . Allies Melted 8 | . . . 5 . . . . . 1 2 Intel | -11 -10 -10 -8 -6 -6 -6 -5 -5 -5 -5 ------- Run | Yrd Mat Sub Scr Fac Ext Cet Fac Upp Upp War Active Infowar (turns) 9060 | 41 751 505 360 1206 917 552 1661 1234 787 1046 Sensors 7058 | . . . . 862 916 552 1661 1234 787 1046 Structural 794 | . . . . 556 238 . . . . . Seismic 1657 | 41 751 505 360 . . . . . . . ECM 4 | . . . . . . . . . 4 . Robot Analysis Total 4 | . 2 . . . 1 . 1 . . . Derelict Logs Recovered 8 | . . 1 2 . . . . 3 2 . Drone Launches 3 | . . . . . . . 3 . . . Drone Recoveries 2 | . . . . . . . 2 . . . Exploration | -11 -10 -10 -8 -6 -6 -6 -5 -5 -5 -5 ------------- Run | Yrd Mat Sub Scr Fac Ext Cet Fac Upp Upp War Turns Passed 12157 | 136 751 505 3049 1352 1056 552 1661 1252 787 1056 Spaces Moved 6519 | 72 348 379 1875 584 520 263 727 712 412 627 Core 15 | 15 . . . . . . . . . . Treads 3074 | 57 348 160 . . . 31 727 712 412 627 Legs 507 | . . . . . 275 232 . . . . Wheels 2923 | . . 219 1875 584 245 . . . . . Hover . | . . . . . . . . . . . Flight . | . . . . . . . . . . . Fastest Speed 50 | 50 160 100 95 147 120 120 160 160 160 160 Average Speed 152 | 137 160 125 136 189 125 134 181 160 160 160 Slowest Speed 275 | 160 160 160 200 275 160 190 240 160 160 240 Overloaded Moves . | . . . . . . . . . . . Propulsion Burnouts . | . . . . . . . . . . . Robots Hopped . | . . . . . . . . . . . Potential Cave-ins . | . . . . . . . . . . . Cave-ins Triggered . | . . . . . . . . . . . Exploration Rate (%) 54 | 6 55 19 85 18 71 85 30 87 53 90 Regions Visited 10 Branch Regions 7 Pre-discovered Areas 6 | . . . 4 . . . . 1 1 . Known Exits Taken 6 | . . . . 1 1 1 1 1 1 . Unknown Exits Taken 4 | 1 1 1 1 . . . . . . . Scrap Searched 13 | . . 3 7 . . . . 2 1 . Spaces Dug 24 | . . . . 3 . . 10 . 11 . Terrain Destroyed 108 | . . . . 6 31 37 19 2 11 2 Melee 13 | . . . . 3 . . 10 . . . Projectile 16 | . . . . 1 . . 9 2 2 2 AOE 70 | . . . . 2 31 37 . . . . Terrain Rammed . | . . . . . . . . . . . Walls Destroyed . | . . . . . . . . . . . Machines Disabled . | . . . . . . . . . . . Actions | -11 -10 -10 -8 -6 -6 -6 -5 -5 -5 -5 --------- Run | Yrd Mat Sub Scr Fac Ext Cet Fac Upp Upp War Total 8310 | 102 491 395 2344 749 833 461 978 789 503 665 Wait 961 | 6 100 . 343 44 90 127 172 34 33 12 Move 6509 | 71 347 378 1874 583 519 262 726 711 411 627 Hop . | . . . . . . . . . . . Pick Up 183 | 14 7 4 64 23 24 19 5 10 9 4 Fast Attach 3 | . . . 1 . . 2 . . . . Attach 82 | 7 . . 3 20 18 11 9 4 7 3 Detach 7 | . . . 1 1 1 2 . . 2 . Swap 47 | . 2 2 11 9 5 9 4 . 4 1 Drop 97 | . 7 4 32 6 17 22 3 . 1 5 Fire 254 | 4 28 7 10 59 59 7 44 4 25 7 Melee 58 | . . . 5 4 18 . 11 18 2 . Ram . | . . . . . . . . . . . Kick . | . . . . . . . . . . . Crush 10 | . . . . . . . 4 . . 6 Escape Stasis 16 | . . . . . 16 . . . . . Rewire 83 | . . . . . 66 . . 8 9 . Trap . | . . . . . . . . . . . Miscellaneous . | . . . . . . . . . . . Route ------- -11/Scrapyard -10/Materials (discovered 4 exits: [*Mat x2] / Min / [*Sub]) -10/Subcaves -8/Scraptown (discovered 2 exits: *Fac x2) -6/Factory (discovered 6 exits: Fac x2 / Low x2 / *Ext x2) -6/Extension (discovered 2 exits: *Fac / *Cet) -6/Cetus (discovered 2 exits: *Fac / [*Arc]) -5/Factory (discovered 4 exits: *Fac x2 / *Upp x2) -5/Upper Caves -5/Upper Caves (discovered 2 exits: *Fac / *War) -5/Warlord (discovered 1 exit: [*Pro]) History --------- Turn | Location | Event 62 | -11/Scrapyard | Discovered new exit (range 14) 137 | -11/Scrapyard | Entered Materials 248 | -10/Materials | Discovered new exit (range 18) 248 | -10/Materials | Identified exit to Mines 309 | -10/Materials | Build established: Mutant 367 | -10/Materials | Discovered new exit (range 16) 611 | -10/Materials | Discovered new exit (range 16) 871 | -10/Materials | Discovered new exit (range 8) 888 | -10/Materials | Entered Subcaves 889 | -10/Subcaves | Approached by a straggling Scientist 890 | -10/Subcaves | Scientist uncovered a shortcut to Scraptown 1223 | -10/Subcaves | Disturbed a concealed Subdweller 1240 | -10/Subcaves | Core integrity fell below 50% 1327 | -10/Subcaves | Learned location of 1 exit from Materials 1393 | -10/Subcaves | Entered Scraptown 1508 | -8/Scraptown | Scanned Subdweller tech in exchange for log data 1510 | -8/Scraptown | Learned 12 Factory zone layouts 1511 | -8/Scraptown | Learned location of 1 exit from Factory 1523 | -8/Scraptown | Discovered new exit (range 13) 1607 | -8/Scraptown | Visited Shadow of the Wyrm 1619 | -8/Scraptown | Visited Awakened 1637 | -8/Scraptown | Visited UFD Registry 1637 | -8/Scraptown | Registered with UFD as "Boltbomber" 1706 | -8/Scraptown | Guru changed UFD alias to "Bladeslider" 1726 | -8/Scraptown | Heard Great Nut preacher, LISTEN AND RECITE! 2010 | -8/Scraptown | Visited Symbiants 2025 | -8/Scraptown | Visited Spacefarers 2034 | -8/Scraptown | Visited Red Mages 2070 | -8/Scraptown | Visited IN-MT5's Study 2133 | -8/Scraptown | Visited Observation Area 2177 | -8/Scraptown | Visited DA-N13 Charitable Foundation 2197 | -8/Scraptown | Visited Botcube Research 2289 | -8/Scraptown | Found DCF Scrap (30 items) 2335 | -8/Scraptown | Visited Infowarlord's Domain 2359 | -8/Scraptown | Visited A0-MCA Data Center 2367 | -8/Scraptown | Given a B+ rating by A0-MCA 2372 | -8/Scraptown | Found A0-MCA's Component Scanner 2388 | -8/Scraptown | Visited Cartography Club 2456 | -8/Scraptown | Learned location of Lower Caves (-7) 2456 | -8/Scraptown | Learned location of Hub_04(d) (-6) 2456 | -8/Scraptown | Learned location of Quarantine (-2) 2456 | -8/Scraptown | Learned 12 Factory zone layouts 2456 | -8/Scraptown | Learned 16 Research zone layouts 2456 | -8/Scraptown | Learned 4 Storage zone layouts 2456 | -8/Scraptown | Learned 8 Proximity Caves zone layouts 2456 | -8/Scraptown | Learned 4 Hub_04(d) zone layouts 2456 | -8/Scraptown | Learned location of 3 exits from Lower Caves 2456 | -8/Scraptown | Learned location of 2 exits from Proximity Caves 2495 | -8/Scraptown | Found Deep Structural Scanner 2558 | -8/Scraptown | Visited Scrapoid Research Area 2868 | -8/Scraptown | Found Lrg. Botcube 2921 | -8/Scraptown | Found Exp. Sensor Array 2952 | -8/Scraptown | Build established: Hauler-Mutant 3014 | -8/Scraptown | Found Scrap Suit 3229 | -8/Scraptown | Met Optimus 3229 | -8/Scraptown | Accepted into 0bPrime 3629 | -8/Scraptown | Civil war broke out across Scraptown 3661 | -8/Scraptown | Found Botcube 3666 | -8/Scraptown | Found Lrg. Botcube 3671 | -8/Scraptown | Found Botcube 3675 | -8/Scraptown | Found Lrg. Botcube 3680 | -8/Scraptown | Lost 3 allies 3756 | -8/Scraptown | Lost 4 allies 3761 | -8/Scraptown | Visited LU-1G1's Boring Crew 3796 | -8/Scraptown | Found Prototype Special Weapon 3797 | -8/Scraptown | Identified LU-1G1's Laser Shovel 3822 | -8/Scraptown | Lost 4 allies 3908 | -8/Scraptown | Lrg. Botcube activated 3947 | -8/Scraptown | Found Prototype Processor 3996 | -8/Scraptown | Botcube activated 4014 | -8/Scraptown | Botcube completed mutation into legged form, armed with 2 guns. 4154 | -8/Scraptown | Optimus destroyed in the chaos of civil war 4222 | -8/Scraptown | Lost 3 allies 4282 | -8/Scraptown | Botcube activated 4301 | -8/Scraptown | Discovered new exit (range 3) 4302 | -8/Scraptown | Botcube completed mutation into hovering form, armed with 2 guns. 4442 | -8/Scraptown | Entered Factory 4442 | -6/Factory | Accompanied by 3 allies 4442 | -6/Factory | Evolved 8 slots: Propulsion x2, Utility x6 4443 | -6/Factory | Identified exit to Lower Caves 4444 | -6/Factory | Identified exit to Factory 4891 | -6/Factory | Garrison activated, responded to threat 5011 | -6/Factory | Identified exit to Extension 5172 | -6/Factory | Found Botcube 5226 | -6/Factory | Lost 7 parts (1p3n2u1w) 5794 | -6/Factory | Entered Extension 5911 | -6/Extension | Lost 3 parts (1n1u1w) 5927 | -6/Extension | Rescued a captive Derelict 6032 | -6/Extension | Rescued a captive Derelict 6080 | -6/Extension | Rescued a captive Derelict 6081 | -6/Extension | Rescued a captive Derelict 6194 | -6/Extension | Lost 4 allies 6206 | -6/Extension | Spotted B-75 Beast 6227 | -6/Extension | Allies destroyed B-75 Beast 6230 | -6/Extension | Spotted B-75 Beast 6243 | -6/Extension | Core integrity fell below 50% 6247 | -6/Extension | Destroyed B-75 Beast 6267 | -6/Extension | Lost 3 allies 6274 | -6/Extension | Build established: Scavenger-Mutant 6331 | -6/Extension | Lost 7 parts (1p2n2u2w) 6368 | -6/Extension | Core integrity fell below 20% 6396 | -6/Extension | Lost 3 parts (1n2u) 6417 | -6/Extension | Energy Cycler disabled 6417 | -6/Extension | Rescued a captive Derelict 6418 | -6/Extension | Rescued a captive Derelict 6418 | -6/Extension | Rescued a captive Derelict 6418 | -6/Extension | Rescued a captive Derelict 6419 | -6/Extension | Disrupted transfer network 6423 | -6/Extension | Rescued a captive Derelict 6520 | -6/Extension | Rescued A7 6805 | -6/Extension | Discovered exit to Factory (range 10) 6806 | -6/Extension | Discovered new exit (range 6) 6828 | -6/Extension | Botcube activated 6829 | -6/Extension | Identified exit to Cetus 6848 | -6/Extension | Botcube completed mutation into hovering form, armed with 2 guns. 6850 | -6/Extension | Entered Cetus 6850 | -6/Cetus | Accompanied by 11 allies (A7) 6855 | -6/Cetus | Acquired a Cetus Manufacturing Module code from A7 6876 | -6/Cetus | Spotted Cetus Guard 6876 | -6/Cetus | Spotted Cetus Guard 6879 | -6/Cetus | Spotted Cetus Guard 6881 | -6/Cetus | Spotted Cetus Guard 6882 | -6/Cetus | Allies destroyed Cetus Guard 6892 | -6/Cetus | Destroyed Cetus Guard 6894 | -6/Cetus | Allies destroyed Cetus Guard 6898 | -6/Cetus | Destroyed Cetus Guard 6989 | -6/Cetus | Started Cetus Manufacturing Module 7001 | -6/Cetus | Escorted A7 to Cetus Mainframe 7014 | -6/Cetus | Manufactured an Enhanced Grunt 7039 | -6/Cetus | Manufactured an Enhanced Grunt 7064 | -6/Cetus | Manufactured an Enhanced Grunt 7089 | -6/Cetus | Manufactured an Enhanced Grunt 7114 | -6/Cetus | Manufactured an Enhanced Grunt 7156 | -6/Cetus | Discovered new exit (range 16) 7214 | -6/Cetus | Spotted Cetus Guard 7214 | -6/Cetus | Spotted Cetus Guard 7219 | -6/Cetus | Allies destroyed Cetus Guard 7219 | -6/Cetus | Spotted Cetus Guard 7223 | -6/Cetus | Spotted Cetus Guard 7229 | -6/Cetus | Destroyed Cetus Guard 7230 | -6/Cetus | Destroyed Cetus Guard 7231 | -6/Cetus | Allies destroyed Cetus Guard 7240 | -6/Cetus | Discovered exit to Factory (range 15) 7252 | -6/Cetus | Met Revision 17 7268 | -6/Cetus | System corruption reached 10% 7371 | -6/Cetus | System corruption reached 30% 7402 | -6/Cetus | Entered Factory 7402 | -5/Factory | Accompanied by 14 allies (A7) 7402 | -5/Factory | Evolved 2 slots: Utility x2 7402 | -5/Factory | Identified Expert System 7403 | -5/Factory | Identified exit to Upper Caves 7407 | -5/Factory | Received a hacking code to weaken MAIN.C 7422 | -5/Factory | Identified exit to DSF 7424 | -5/Factory | Build established: Commander-Mutant 7826 | -5/Factory | Lost 3 allies 7964 | -5/Factory | Discovered new exit (range 5) 7971 | -5/Factory | Identified exit to Factory 8002 | -5/Factory | First assault squad dispatched 8043 | -5/Factory | Build established: Scavenger-Mutant 8210 | -5/Factory | Lost 3 allies 8462 | -5/Factory | Murdered *XT-NSN 8462 | -5/Factory | Destroyed *XT-NSN 8469 | -5/Factory | Found Botcube 8872 | -5/Factory | Garrison activated, responded to threat 8925 | -5/Factory | Spotted B-75 Beast 8993 | -5/Factory | Discovered exit to Factory (range 16) 9053 | -5/Factory | System corruption reached 10% 9063 | -5/Factory | Entered Upper Caves 9088 | -5/Upper Caves | Lost 6 parts (2n3u1w) 9695 | -5/Upper Caves | Attracted the attention of an 0b10 checkpoint 9732 | -5/Upper Caves | Learned location of Armory (-4) 9831 | -5/Upper Caves | Lost 3 parts (1p2u) 9939 | -5/Upper Caves | Encountered a Warlord checkpoint 10192 | -5/Upper Caves | Discovered new exit (range 15) 10201 | -5/Upper Caves | Attacked by a delusional Derelict stockpiling Unaware 10217 | -5/Upper Caves | Learned 4 Factory zone layouts 10299 | -5/Upper Caves | Identified exit to Upper Caves 10315 | -5/Upper Caves | Entered another Upper Caves area 10315 | -5/Upper Caves | Accompanied by 3 allies 10335 | -5/Upper Caves | Discovered exit to Factory (range 8) 10411 | -5/Upper Caves | Core integrity fell below 50% 10581 | -5/Upper Caves | Encountered a Warlord checkpoint 10781 | -5/Upper Caves | Learned Factory stockpile data 10823 | -5/Upper Caves | Attracted the attention of an 0b10 outpost 10871 | -5/Upper Caves | Lost 4 parts (1p1n2u) 11076 | -5/Upper Caves | Discovered new exit (range 9) 11088 | -5/Upper Caves | Identified exit to Warlord 11102 | -5/Upper Caves | Entered Warlord 11102 | -5/Warlord | Accompanied by 1 ally 11181 | -5/Warlord | System corruption cleaned by Quarantine Array 11344 | -5/Warlord | Visited the Vortex Lab 11355 | -5/Warlord | Warlord's base attacked by MAIN.C 11365 | -5/Warlord | Found Vortex Rail 11367 | -5/Warlord | Found Vortex Rail 11705 | -5/Warlord | Warlord forces counterattacked 11845 | -5/Warlord | Rebuked by Warlord 12030 | -5/Warlord | Warlord base infiltrated, sounded retreat 12133 | -5/Warlord | Spotted Executioner 12149 | -5/Warlord | Discovered new exit (range 10) 12152 | -5/Warlord | Core integrity fell below 20% 12155 | -5/Warlord | Spotted Executioner 12155 | -5/Warlord | Spotted Executioner 12158 | -5/Warlord | Destroyed by G-67 Veteran with Field Laser Last Messages --------------- 12147_ Adv. Thermal Shield destroyed. 12148_ Imp. Sensor Array destroyed. 12148_ Slammed into G-50 Soldier. 12148_ S-27 Virus destroyed. 12149_ Centrium Heavy Treads destroyed. 12149_ EXIT=FOUND 12153_ Centrium Heavy Treads destroyed. 12154_ System corrupted: FCS attempts to trigger Railgun. 12154_ System corrupted: Railgun misfires. 12154_ Slug penetrates G-50 Soldier. 12154_ Slug penetrates Earth. 12154_ Slug penetrates G-50 Soldier. 12154_ G-50 Soldier destroyed. 12154_ A0-MCA's Component Scanner destroyed. 12155_ ANNOUNCEMENT: Detected 1 Grunt squad, 1 Melee squad, 1 Swarmer squad, 1 Mixed squad, with prototype support. 12156_ Penetrated by Slug. 12156_ Railgun destroyed. Map ----- +----------------------------------------------------+ | | | | | | | | | | | | | ?????????????????????????????????? | | ?????????????????????????????????? | | ?????????????????????????????????? | | ###??????????????????????????????? | | #X#############??????????????????? | | ^ #??????????????????? | | #??????????????????? | | ############ #??????????????????? | | ???????????# #??????????????????? | | ???????????# #??????????????????? | | ???????????# #??????????????????? | | ???????????# #??????????????????? | | ??????????## ##????????#####????? | | ?????????## #???????## ###??? | | ?????????# #??????## s#### | | ?????????# ##?????## ss big | | ?????????# #?????# l gg g | | ?????????# ##????# E;E#? | | ?????????## #????# b ;;#?? | | ??????????### ##????# @s #???? | | ????????????## #???#;# ##???? | | ?????????????## #???#;;s ;#????? | | ??????????????# ##### g ;##???? | | ??????????????# [%*=sgs #???? | | ??????????????## %[%%%Eg### #?? | | ??????????????#""=%=%g #?? #? | | ?????????????# ##;#= b "#? #? | | #????????????##?### # ##? | | #?????????????????# "#? #?? | | #????????????????? "#? #?? | | #####????????????# #; !=*#?# ^#? | | "############?####![=!=##? #?? | | * *"[=[="""*""#????#!%/!%=! ##?? | | %%%=![!]=!%!%""#?####*[[%!=[*#???? | | %!%[=%%%%!%!%===## #[%[==]*[#???? | | %%[%!%[]%%[=%*= !%!%=[%! ???? | | =%!%===%!!=*=[%% %=[!*[!# ???? | | *=%%=*!!=%!%%[=!### ![[!=/ #?????? | | %%=%%%!*=!=%!!"#??##=*[[##?? #??? | | =%%*""="*]%*""=#???# *=!???? ??? | | "############???# ##???? ??? | | #####?????????????## #????? ??? | | #????????????????## #???? ???? | | #????????????????# ^##???? ???? | +----------------------------------------------------+ Best States ------------- Heat Dissipation 59 Energy Generation 29 Energy Capacity 350 Matter Stores 300 Matter Capacity 300 Sight Range 16 Robot Scan Range 20 Terrain Scan Density 10 ECM Strength 2 Power Amplification 20 Armor Coverage 900 Resistance: KI 20 Resistance: TH 30 Resistance: EM 15 Phase Shifting 5 Evasion (%) 65 Recoil Reduction 4 Offensive Hacking 44 Item Schematics ----------------- Hcp. Storage Unit | -10/Materials | Hacked Huge Storage Unit | -10/Materials | Hacked Imp. Force Field | -6/Extension | Hacked Robot Schematics ------------------ B-48 Gladiator | -6/Extension | Hacked Fabricated ------------ Nothing Repaired ---------- Nothing Alien Tech Used ----------------- None Achievements -------------- Main Advantage Challenges ------------ None Game ------ Seed StrikeBottomlessClaw Manual? 0 Play Time 01:59:45 Cumulative 158.2 hours Start 2025.08.17 @ 04:43:01 End 2025.08.17 @ 08:07:49 Sessions 3 Manual Loads 0 Difficulty Rogue Special Mode None Game No. 260 Rogue 260 Adventurer 0 Explorer 0 Win Type - Total 3 Types 2/0/1/0/0/0/0/0/0/0 Lore% 76 Gallery% 72 Achievement% 52 Wizard Run 0 Options --------- Layout 1 ASCII 0 Keyboard 0 Movement Mouse Keybinds 0 Fullscreen 1 Font 24/Smallcaps Map View 50x35 Zoom Use 0% Tactical HUD 1 Map Filters NONE Filters NONE Steam 1 RUN: c56f5c4f-6565-4baf-894e-1a015f4b6a9a